bitfinex/quotes_ETHUSD_20230905
["timestamp","ask_amount","ask_price","bid_price","bid_amount"]
[1693883964169,6.19693,1613.7,1613.5,11.26693412]
[1693883966032,0.21590997,1613.6,1613.5,11.26693412]
[1693883966312,6.19693,1613.7,1613.5,11.26693412]
[1693883966836,6.19693,1613.7,1613.5,10.3427567]
[1693883967055,6.19693,1613.7,1613.5,0.63836687]
[1693883967183,1.121,1613.6,1613.3,0.63836687]
[1693883967383,13.5164,1613.5,1613.3,3.63836687]
[1693883967915,1.121,1613.5,1613.3,9.83681687]
[1693883968120,1.121,1613.5,1613.3,12.69602059]
[1693883968290,8.37074,1613.7,1613.3,18.89449059]
[1693883968486,8.37074,1613.7,1613.4,0.63836687]
[1693883968788,8.37074,1613.7,1613.4,13.03423687]
[1693883970034,8.37074,1613.7,1613.4,15.63353687]
[1693883970035,2.1737,1613.7,1613.4,15.63353687]
[1693883970254,8.37066,1613.7,1613.5,7.76091369]
[1693883971136,2.1737,1613.7,1613.5,6.19756]
[1693883971340,2.1737,1613.7,1613.5,12.39526]
[1693883972304,8.37073,1613.7,1613.5,6.19756]
[1693883981054,0.21583938,1613.6,1613.5,6.19756]
[1693883981413,14.56782,1613.7,1613.5,6.19756]
[1693883981713,14.56782,1613.7,1613.5,7.59180051]
[1693883983452,8.37073,1613.7,1613.5,7.59180051]
[1693883984351,14.56782,1613.7,1613.4,3.23766687]
[1693883984554,20.76491,1613.7,1613.4,3.23766687]
[1693883985208,21.88591,1613.7,1613.4,3.23766687]
[1693883985412,21.88591,1613.7,1613.4,2.5993]
[1693883986057,21.88591,1613.7,1613.3,13.19625128]
[1693883986550,21.88591,1613.7,1613.3,6.99796128]
[1693883986740,24.75915942,1613.7,1613.3,4.13875756]
[1693883987116,24.75915942,1613.7,1613.3,10.33720756]
[1693883987512,24.75915942,1613.7,1613.2,2.87265091]
[1693883987513,27.35505783,1613.7,1613.2,2.87265091]
[1693883987761,1.121,1613.4,1613.1,1.59591717]
[1693883987977,19.71641,1613.3,1613.0,0.50073487]
[1693883988179,12.39694,1613.3,1613.0,6.19957]
[1693883988472,12.39694,1613.3,1613.0,6.83793687]
[1693883988665,14.51124,1613.3,1613.0,6.83793687]
[1693883989030,14.51124,1613.3,1613.0,12.39919]
[1693883989470,14.51124,1613.3,1613.0,6.19957]
[1693883989632,14.51124,1613.3,1613.0,8.46898772]
[1693883990674,14.51124,1613.3,1613.0,9.10735459]
[1693883991237,14.51124,1613.3,1613.0,8.46898772]
[1693883991729,14.51124,1613.3,1613.0,9.10735459]
[1693883991931,14.51124,1613.3,1613.0,8.46898772]
[1693883994356,14.51124,1613.3,1613.1,0.84689877]
[1693883995268,2.1143,1613.3,1613.1,7.04606877]
[1693883995487,12.3967,1613.4,1613.1,15.81200877]
[1693883996181,0.21216186,1613.3,1613.1,15.81200877]
[1693883996380,0.21216186,1613.3,1613.2,1.58120088]
[1693883996891,12.3967,1613.4,1613.2,1.58120088]
[1693883999887,12.3967,1613.4,1613.1,9.61259877]
[1693884001026,12.3967,1613.4,1612.7,0.97353014]
[1693884001027,4.121,1613.0,1612.7,0.97353014]
[1693884001179,19.72103,1612.9,1612.6,0.64918199]
[1693884001374,19.72103,1612.9,1612.4,2.25026388]
[1693884001375,12.40002,1612.9,1612.4,6.85111199]
[1693884001580,18.60003,1612.9,1612.5,0.64918199]
[1693884001811,18.60003,1612.9,1612.5,1.4316282]
[1693884002020,20.84613,1612.9,1612.5,0.78244621]
[1693884002177,21.96713,1612.9,1612.5,0.78244621]
[1693884002377,21.96713,1612.9,1612.5,3.0]
[1693884002702,21.96713,1612.9,1612.4,3.0]
[1693884002891,6.20085,1612.7,1612.4,3.0]
[1693884005314,12.4017,1612.7,1612.4,3.0]
[1693884007719,19.72355,1612.7,1612.4,3.0]
[1693884007892,22.315974,1612.7,1612.4,3.0]
[1693884008095,24.488974,1612.7,1612.4,3.0]
[1693884009427,21.89655,1612.7,1612.4,3.0]
[1693884009924,6.20155,1612.5,1612.4,3.0]
[1693884010903,19.72565,1612.5,1612.3,0.1]
[1693884011221,1.121,1612.4,1612.3,0.1]
[1693884011426,13.52486,1612.4,1612.3,0.1]
[1693884011657,15.52141886,1612.4,1612.3,0.1]
[1693884014134,9.31948886,1612.4,1612.3,0.1]
[1693884014487,1.99655886,1612.4,1612.3,0.1]
[1693884014687,13.76348861,1612.5,1612.3,0.1]
[1693884015331,7.56172861,1612.5,1612.3,0.1]
[1693884015704,13.76343861,1612.5,1612.3,0.1]
[1693884017019,3.06701426,1612.4,1612.3,0.1]
[1693884017187,22.79380426,1612.4,1612.3,0.1]
[1693884017514,4.15655329,1612.4,1612.3,0.1]
[1693884017720,7.32293,1612.4,1612.3,0.1]
[1693884017924,13.52486,1612.4,1612.3,0.1]
[1693884018494,19.72679,1612.4,1612.3,0.1]
[1693884021504,22.79380426,1612.4,1612.3,0.1]
[1693884022233,23.04199626,1612.4,1612.3,0.1]
[1693884022405,26.10238175,1612.4,1612.3,0.1]
[1693884024461,29.10238175,1612.4,1612.3,0.1]
[1693884024820,29.10238175,1612.4,1612.1,0.1]
[1693884025016,3.06701426,1612.3,1612.1,0.1]
[1693884025245,24.8108,1612.2,1612.1,0.1]
[1693884025464,30.66559569,1612.2,1612.1,0.1]
[1693884025662,31.78659569,1612.2,1612.1,0.1]
[1693884025813,31.78659569,1612.2,1612.0,0.1]
[1693884026217,32.01875617,1612.2,1612.0,0.1]
[1693884026622,3.06701426,1612.1,1612.0,0.1]
[1693884026825,24.57927143,1612.1,1612.0,0.1]
[1693884032860,24.58300698,1612.1,1612.0,0.1]
[1693884033063,27.58300698,1612.1,1612.0,0.1]
[1693884034380,2.242,1612.0,1611.6,0.1]
[1693884034626,2.242,1612.0,1611.4,0.1]
[1693884034627,3.06701426,1611.8,1611.4,0.1]
[1693884034781,31.0235,1611.7,1611.4,0.1]
[1693884035108,5.23737856,1611.6,1611.4,0.1]
[1693884035308,43.02135426,1611.5,1610.9,0.1053644]
[1693884035632,1.121,1611.3,1610.9,0.1053644]
[1693884035925,6.20955384,1611.4,1611.0,8.72934]
[1693884036108,6.20941384,1611.4,1611.1,0.872934]
[1693884036421,7.33041384,1611.4,1611.1,0.872934]
[1693884036724,13.53641384,1611.4,1611.1,0.872934]
[1693884037126,0.00362384,1611.4,1611.1,0.872934]
[1693884037335,0.00362384,1611.4,1611.1,19.493704]
[1693884037618,0.00362384,1611.4,1611.3,6.20616]
[1693884037830,12.41027,1611.6,1611.3,6.20616]
[1693884037998,6.20504,1611.6,1611.3,8.83176]
[1693884038619,6.2048,1611.7,1611.3,15.03792]
[1693884038819,13.53061,1611.7,1611.3,2.6256]
[1693884039127,10.98520717,1612.1,1611.4,9.58701426]
[1693884039423,12.40784,1611.9,1611.5,6.20502]
[1693884039625,1.16250843,1612.2,1611.8,1.121]
[1693884039794,1.16250843,1612.2,1611.9,24.67842426]
[1693884039995,12.40437,1612.4,1611.9,24.99464426]
[1693884039996,6.20252,1612.3,1611.9,24.99464426]
[1693884040437,12.40437,1612.4,1612.0,3.0]
[1693884040736,6.20212,1612.4,1612.0,12.00270443]
[1693884040919,0.00326513,1612.3,1612.0,12.00270443]
[1693884042010,0.00326513,1612.3,1612.0,18.20617443]
[1693884042787,13.52436,1612.5,1612.0,18.20617443]
[1693884042997,1.121,1612.2,1611.8,3.3684]
[1693884043188,18.60842,1612.2,1611.8,3.3684]
[1693884043389,18.60842,1612.2,1611.8,0.3684]
[1693884043621,1.860842,1612.1,1611.8,0.3684]
[1693884043793,1.860842,1612.1,1611.6,12.77803]
[1693884043794,6.20347,1612.0,1611.6,12.77803]
[1693884043995,6.20347,1612.0,1611.6,6.20481]
[1693884044207,1.573,1611.8,1611.5,30.94835462]
[1693884044409,12.40924,1611.7,1611.5,30.45]
[1693884044611,6.20462,1611.7,1611.3,11.23029004]
[1693884044830,6.20462,1611.7,1611.3,17.43645004]
[1693884045130,6.20462,1611.7,1611.3,5.02435004]
[1693884045131,0.00322427,1611.6,1611.3,5.02435004]
[1693884045334,12.41326427,1611.6,1611.3,2.6256]
[1693884045536,18.61829427,1611.6,1611.3,2.6256]
[1693884046406,0.00322427,1611.6,1611.3,8.83176]
[1693884046606,0.00322427,1611.6,1611.3,13.059936]
[1693884046930,12.40968,1611.7,1611.3,13.059936]
[1693884047802,0.00322219,1611.6,1611.3,13.059936]
[1693884048327,6.20825219,1611.6,1611.3,13.059936]
[1693884048927,6.20825219,1611.6,1611.3,8.83176]
[1693884050124,6.20825219,1611.6,1611.3,2.6256]
[1693884050335,18.61831219,1611.6,1611.3,2.6256]
[1693884050534,20.19131219,1611.6,1611.3,2.6256]
[1693884051220,18.61831219,1611.6,1611.3,2.6256]
[1693884051407,12.41328219,1611.6,1611.3,2.6256]
[1693884051601,14.27508241,1611.6,1611.3,2.6256]
[1693884052224,25.12012667,1611.6,1611.3,2.6256]
[1693884052398,1.573,1611.4,1611.3,2.6256]
[1693884052602,20.19034,1611.4,1611.3,2.6256]
[1693884052920,20.19353658,1611.4,1611.3,2.6256]
[1693884053236,22.74460166,1611.4,1611.0,2.6596]
[1693884053619,16.53882166,1611.4,1611.0,2.6596]
[1693884053938,14.96582166,1611.4,1611.0,8.86688]
[1693884054797,6.20897658,1611.4,1611.0,15.0742]
[1693884056133,12.41475658,1611.4,1611.0,2.6596]
[1693884057258,12.41475658,1611.4,1611.0,8.86687]
[1693884058657,6.20897658,1611.4,1611.0,8.86687]
[1693884058959,6.20897658,1611.4,1611.1,0.886687]
[1693884059157,6.20897658,1611.4,1611.1,6.20691]
[1693884059459,0.00319658,1611.4,1611.1,6.20691]
[1693884059667,6.20898658,1611.4,1611.1,6.20691]
[1693884060548,18.62056658,1611.4,1611.0,2.6596]
[1693884061023,21.68758084,1611.4,1611.0,2.6596]
[1693884061236,2.16875808,1611.3,1611.0,2.6596]
[1693884061435,12.4131,1611.2,1611.0,2.6596]
[1693884061858,0.0031751,1611.1,1610.9,0.1053644]
[1693884062070,12.41464,1611.0,1610.9,0.1053644]
[1693884062235,6.20732,1611.0,1610.9,0.1053644]
[1693884062433,8.06980051,1611.0,1610.9,0.1053644]
[1693884062947,1.86564403,1611.0,1610.9,0.1053644]
[1693884063365,14.28028403,1611.0,1610.9,0.1053644]
[1693884063663,20.48760403,1611.0,1610.9,0.1053644]
[1693884063861,23.55461829,1611.0,1610.9,0.1053644]
[1693884064364,23.55461829,1611.0,1610.4,4.41445374]
[1693884064365,3.0,1610.7,1610.4,0.92767522]
[1693884064578,3.0,1610.7,1610.1,1.27673374]
[1693884064579,12.4185,1610.5,1610.1,0.64792437]
[1693884064725,12.4185,1610.5,1610.1,1.00963561]
[1693884065065,0.00310521,1610.4,1610.1,7.22040561]
[1693884065367,0.00310521,1610.4,1610.3,1.573]
[1693884065549,0.00310521,1610.4,1610.3,17.64096437]
[1693884065756,0.00310521,1610.4,1610.3,26.23609981]
[1693884065929,6.20705,1611.1,1610.5,3.0]
[1693884066128,0.93086757,1611.3,1610.8,1.573]
[1693884066470,0.93086757,1611.3,1610.8,4.573]
[1693884066471,7.13702757,1611.3,1610.8,4.573]
[1693884066649,6.20578,1611.4,1610.8,12.41587]
[1693884066650,8.45848,1611.4,1610.8,12.41587]
[1693884066962,6.20973396,1611.2,1610.8,3.271716]
[1693884067123,6.20973396,1611.2,1610.8,6.20802]
[1693884067323,21.69002822,1611.2,1610.7,3.0]
[1693884067518,17.05638822,1611.2,1610.7,3.0]
[1693884067724,0.00309396,1611.2,1610.7,21.62535]
[1693884068627,0.00309396,1611.2,1610.7,23.19835]
[1693884068941,6.20644,1611.3,1610.8,2.319835]
[1693884069135,12.41296,1611.3,1610.8,8.527635]
[1693884069362,12.41296,1611.3,1610.7,9.20829]
[1693884069363,21.68649426,1611.3,1610.7,9.20829]
[1693884069565,5.29491426,1611.2,1610.7,9.20829]
[1693884069775,11.50146426,1611.2,1610.7,3.0]
[1693884070081,0.00332403,1611.1,1610.7,15.41685]
[1693884070642,0.00332403,1611.1,1610.8,4.573]
[1693884070982,6.20595,1611.4,1610.9,12.8727]
[1693884071158,6.20618,1611.3,1610.9,6.665]
[1693884071350,12.41236,1611.3,1610.9,3.0824]
[1693884071875,0.00309939,1611.2,1610.9,8.83277]
[1693884072469,6.20965939,1611.2,1610.9,2.6251]
[1693884072683,6.20965939,1611.2,1610.8,3.0]
[1693884072684,15.48323365,1611.2,1610.8,3.0]
[1693884072882,15.48323365,1611.2,1610.7,5.6251]
[1693884072883,1.54832337,1611.1,1610.7,5.6251]
[1693884073182,12.41621939,1611.2,1610.8,6.20803]
[1693884074094,12.41621939,1611.2,1610.7,11.83337]
[1693884074095,4.64001426,1611.1,1610.7,2.6251]
[1693884074246,20.1952,1611.0,1610.4,18.41895]
[1693884074437,5.08653426,1610.9,1610.5,5.7297]
[1693884074653,8.22731,1610.9,1610.5,11.93874]
[1693884074887,0.00328619,1610.8,1610.5,24.35724]
[1693884075842,14.5146,1611.0,1610.5,24.35724]
[1693884076042,8.30707,1611.0,1610.5,24.35724]
[1693884076493,14.5146,1611.0,1610.5,5.7297]
[1693884076786,1.45146,1610.9,1610.5,5.7297]
[1693884076986,6.20817,1610.8,1610.5,5.7297]
[1693884077478,6.20817,1610.8,1610.5,2.7297]
[1693884077646,0.24636874,1610.7,1610.5,2.7297]
[1693884077846,0.24964314,1610.7,1610.5,2.7297]
[1693884078086,0.0032744,1610.7,1610.5,2.7297]
[1693884078375,0.62441884,1610.7,1610.5,2.7297]
[1693884078585,13.04138884,1610.7,1610.5,2.7297]
[1693884078787,0.62441884,1610.7,1610.5,2.7297]
[1693884078944,0.0032744,1610.7,1610.5,2.7297]
[1693884079146,0.0032744,1610.7,1610.5,8.93893]
[1693884079373,0.0032744,1610.7,1610.5,15.14818]
[1693884079766,0.0032744,1610.7,1610.5,2.7297]
[1693884080013,4.69048312,1611.1,1610.5,2.7297]
[1693884080014,13.98935,1610.8,1610.5,2.7297]
[1693884080151,7.607705,1610.7,1610.5,2.7297]
[1693884080352,0.21641549,1610.7,1610.5,2.7297]
[1693884080585,0.21641549,1610.7,1610.5,8.93893]
[1693884080781,14.60241,1610.9,1610.5,8.93893]
[1693884080985,0.00326262,1610.7,1610.5,8.93893]
[1693884081754,0.21779857,1610.6,1610.5,2.7297]
[1693884082288,6.20823,1610.8,1610.5,2.7297]
[1693884082488,9.27524426,1610.8,1610.5,2.7297]
[1693884082700,6.20823,1610.8,1610.5,2.7297]
[1693884082989,0.00355869,1610.7,1610.5,8.93894]
[1693884083296,0.00355869,1610.7,1610.5,15.14819]
[1693884083602,0.00355869,1610.7,1610.5,20.66171426]
[1693884083763,0.00355869,1610.7,1610.6,1.573]
[1693884083963,7.13807312,1611.1,1610.7,12.4167]
[1693884084179,6.20709,1611.1,1610.7,12.4167]
[1693884084476,6.20709,1611.1,1610.7,6.20828]
[1693884084798,23.76769926,1611.1,1610.6,3.0]
[1693884084991,0.0032742,1611.0,1610.6,3.0]
[1693884085299,6.20778,1610.9,1610.6,3.0]
[1693884085993,0.22133322,1610.8,1610.6,3.0]
[1693884086299,0.22133322,1610.8,1610.6,9.20885]
[1693884086451,0.22133322,1610.8,1610.6,15.41771]
[1693884086886,0.22459564,1610.8,1610.6,15.41771]
[1693884087091,0.00326242,1610.8,1610.6,3.0]
[1693884087311,0.00326242,1610.8,1610.6,6.20885]
[1693884087512,0.22252145,1610.7,1610.6,13.932464]
[1693884088006,6.20665,1611.2,1610.6,21.714324]
[1693884088210,0.22255584,1610.7,1610.6,21.714324]
[1693884088508,6.20665,1611.2,1610.6,21.714324]
[1693884088816,6.20665,1611.2,1610.7,2.1714324]
[1693884089116,2.39963718,1611.1,1610.7,8.3798524]
[1693884089269,14.81384718,1611.1,1610.6,6.85677437]
[1693884089610,8.60659718,1611.1,1610.6,13.06549437]
[1693884089775,2.39963718,1611.1,1610.6,21.72920072]
[1693884091169,8.60660718,1611.1,1610.6,15.52034072]
[1693884091892,3.06701426,1611.0,1610.6,0.64792437]
[1693884092105,3.06701426,1611.0,1610.5,9.58677437]
[1693884092308,6.20788,1610.9,1610.5,9.58677437]
[1693884092475,8.40068,1610.9,1610.5,9.58677437]
[1693884092899,0.00326943,1610.8,1610.5,9.58677437]
[1693884093113,7.05176437,1610.8,1610.5,2.7297]
[1693884093621,13.25986437,1610.8,1610.5,2.7297]
[1693884093919,13.25986437,1610.8,1610.4,1.13579592]
[1693884093920,16.32687863,1610.8,1610.4,1.13579592]
[1693884094125,22.53497863,1610.8,1610.4,1.13579592]
[1693884094440,22.53497863,1610.8,1610.4,0.64792437]
[1693884094596,8.46213786,1610.7,1610.4,0.64792437]
[1693884094998,8.4654028,1610.7,1610.4,0.64792437]
[1693884095639,14.6720378,1610.7,1610.4,0.64792437]
[1693884096710,8.4633978,1610.7,1610.4,0.64792437]
[1693884097113,2.2547578,1610.7,1610.4,6.85752437]
[1693884097296,0.00326494,1610.7,1610.4,6.85752437]
[1693884097836,0.00326494,1610.7,1610.4,7.82862348]
[1693884098053,14.60856,1610.9,1610.4,14.03825348]
[1693884098336,2.1928,1610.9,1610.5,1.61902348]
[1693884098523,6.20746,1611.0,1610.6,6.2088]
[1693884098731,7.3608062,1611.1,1610.6,14.46927072]
[1693884099041,0.0032728,1610.9,1610.7,6.85620437]
[1693884099557,0.0032728,1610.9,1610.7,9.49330437]
[1693884099759,0.0032728,1610.9,1610.7,18.24588348]
[1693884100056,0.22284308,1611.1,1610.8,0.64792437]
[1693884100432,14.50616,1611.2,1610.8,0.64792437]
[1693884100669,16.5774,1611.2,1610.7,16.67288348]
[1693884100954,0.00330859,1611.1,1610.7,3.28502437]
[1693884101121,6.43942666,1611.1,1610.7,3.28502437]
[1693884101417,12.64663666,1611.1,1610.7,3.28502437]
[1693884102475,18.85384666,1611.1,1610.7,3.28502437]
[1693884102646,15.10573533,1611.1,1610.7,3.28502437]
[1693884102844,18.17274959,1611.1,1610.7,3.28502437]
[1693884103374,8.89826533,1611.1,1610.7,9.49344437]
[1693884103572,6.43916666,1611.1,1610.7,9.49344437]
[1693884103772,0.23221666,1611.1,1610.7,9.49344437]
[1693884104072,0.23221666,1611.1,1610.8,0.64792437]
[1693884104262,0.23221666,1611.1,1610.8,6.85573437]
[1693884105130,0.23221666,1611.1,1610.8,0.64792437]
[1693884105131,6.43921666,1611.1,1610.8,0.64792437]
[1693884105364,0.64392167,1611.0,1610.8,0.64792437]
[1693884105574,6.43921666,1611.1,1610.8,0.64792437]
[1693884105977,0.00327913,1610.9,1610.8,0.64792437]
[1693884106478,0.00327913,1610.9,1610.7,10.46456348]
[1693884106859,6.43590807,1611.1,1610.7,10.46456348]
[1693884107969,0.00329062,1611.0,1610.7,10.46456348]
[1693884108296,0.00329062,1611.0,1610.7,4.25612348]
[1693884108800,6.21070062,1611.0,1610.7,3.28502437]
[1693884108962,7.47536149,1611.0,1610.7,4.25612348]
[1693884109501,7.47536149,1611.0,1610.7,3.28502437]
[1693884109897,7.47531149,1611.0,1610.7,3.28502437]
[1693884110195,1.26795149,1611.0,1610.7,3.28502437]
[1693884110514,0.00329062,1611.0,1610.7,15.70173437]
[1693884110665,0.00329062,1611.0,1610.7,9.49325437]
[1693884110867,0.00329062,1611.0,1610.7,10.46435348]
[1693884111989,0.00329062,1611.0,1610.8,0.64792437]
[1693884112322,0.00329062,1611.0,1610.8,6.85593437]
[1693884113004,0.00329062,1611.0,1610.8,6.20801]
[1693884114688,0.00329062,1611.0,1610.7,16.67265348]
[1693884114886,0.00329062,1611.0,1610.7,19.0884552]
[1693884116017,0.00329062,1611.0,1610.7,18.11735609]
[1693884116218,0.23910881,1610.9,1610.7,18.11735609]
[1693884116978,0.00331194,1610.8,1610.7,18.11735609]
[1693884117893,0.00331194,1610.8,1610.7,19.0884552]
[1693884118312,0.00331194,1610.8,1610.7,18.44053083]
[1693884118490,0.00331194,1610.8,1610.7,19.09130321]
[1693884119204,0.00331194,1610.8,1610.7,18.1202041]
[1693884120820,0.00331194,1610.8,1610.7,35.80902509]
[1693884121024,0.00331194,1610.8,1610.7,39.59465972]
[1693884121186,0.00331194,1610.8,1610.7,41.72293168]
[1693884121379,0.00331194,1610.8,1610.7,40.44619794]
[1693884121822,8.45462,1611.4,1610.7,40.44619794]
[1693884121823,2.2487,1611.4,1610.9,3.0]
[1693884122043,2.2487,1611.4,1611.0,18.62154]
[1693884122183,2.2487,1611.4,1611.1,1.862154]
[1693884122383,2.2487,1611.4,1611.1,14.275704]
[1693884122819,6.85498415,1611.6,1611.1,14.275704]
[1693884123222,0.64988415,1611.6,1611.1,20.482634]
[1693884123429,0.93063656,1611.7,1611.2,1.573]
[1693884123724,7.13525656,1611.7,1611.3,12.4121]
[1693884124187,7.13525656,1611.7,1611.3,14.9214]
[1693884124387,8.33432,1611.7,1611.3,14.9214]
[1693884129325,8.33432,1611.7,1611.3,8.71527]
[1693884129482,8.33432,1611.7,1611.3,11.30182548]
[1693884129886,2.1297,1611.7,1611.3,31.35415974]
[1693884130086,7.13439109,1611.9,1611.4,3.0]
[1693884130336,0.93052109,1611.9,1611.4,4.573]
[1693884130502,12.4073,1612.0,1611.5,6.66257]
[1693884131127,12.4073,1612.0,1611.6,2.5914]
[1693884131290,0.21843071,1611.9,1611.6,2.5914]
[1693884131484,0.21843071,1611.9,1611.6,11.86339426]
[1693884131813,0.21843071,1611.9,1611.6,18.06840426]
[1693884132014,0.21843071,1611.9,1611.7,8.01127043]
[1693884132693,0.21843071,1611.9,1611.7,14.21589043]
[1693884133032,0.21843071,1611.9,1611.7,6.20443]
[1693884133241,0.21843071,1611.9,1611.6,15.00104]
[1693884136931,2.269,1612.0,1611.6,15.00104]
[1693884137142,14.67602,1612.0,1611.6,2.5914]
[1693884137293,20.87957,1612.0,1611.6,2.5914]
[1693884137495,2.087957,1611.9,1611.6,2.5914]
[1693884137708,14.496127,1611.9,1611.6,2.5914]
[1693884139258,14.496127,1611.9,1611.5,0.4885481]
[1693884139554,8.291897,1611.9,1611.5,2.5604]
[1693884140060,8.291897,1611.9,1611.5,8.76578]
[1693884140730,8.47247,1612.0,1611.5,14.97117]
[1693884140926,14.6762,1612.0,1611.5,14.97117]
[1693884141424,8.47247,1612.0,1611.5,14.97117]
[1693884142233,8.47247,1612.0,1611.5,21.17656]
[1693884142748,0.21301282,1611.9,1611.5,21.17656]
[1693884142948,0.21301282,1611.9,1611.6,2.117656]
[1693884143148,0.21301282,1611.9,1611.7,6.20462]
[1693884147579,0.21301282,1611.9,1611.7,18.61386]
[1693884147730,0.21301282,1611.9,1611.8,3.0]
[1693884147936,7.13271025,1612.3,1611.8,15.40848]
[1693884148271,7.13271025,1612.3,1611.8,18.33379143]
[1693884148447,2.36305165,1612.2,1611.9,8.79493]
[1693884148650,2.36305165,1612.2,1611.9,14.99878]
[1693884149581,0.21585165,1612.2,1611.9,14.99878]
[1693884149779,0.16585165,1612.2,1611.9,14.99878]
[1693884149932,0.16585165,1612.2,1612.0,1.499878]
[1693884150135,0.29578312,1612.2,1612.0,1.499878]
[1693884150998,0.29578312,1612.2,1611.9,14.99878]
[1693884150999,12.70119312,1612.2,1611.9,2.5913]
[1693884152187,6.49848312,1612.2,1611.9,2.5913]
[1693884152753,0.29578312,1612.2,1611.9,8.79508]
[1693884153074,0.29578312,1612.2,1611.9,14.99893]
[1693884156482,0.29578312,1612.2,1611.9,21.20278]
[1693884156790,0.29578312,1612.2,1612.0,14.526908]
[1693884157596,0.21654809,1612.2,1612.0,14.526908]
[1693884160916,0.21654809,1612.2,1611.9,2.5913]
[1693884161204,6.41929809,1612.2,1611.9,8.79513]
[1693884161962,0.21654809,1612.2,1611.9,8.79513]
[1693884163706,9.39675,1612.3,1611.9,8.79513]
[1693884165683,15.59921,1612.3,1611.7,6.20454]
[1693884166007,15.59921,1612.3,1611.7,6.20436]
[1693884166008,6.20316,1612.1,1611.7,6.20436]
[1693884166215,15.088711,1612.2,1611.7,12.40882]
[1693884166990,2.2422,1612.1,1611.7,12.40882]
[1693884167506,14.64849,1612.1,1611.7,6.20459]
[1693884167715,7.668359,1612.0,1611.6,15.64726375]
[1693884167890,8.44528,1612.1,1611.6,15.64726375]
[1693884168484,2.2422,1612.1,1611.6,16.77026375]
[1693884168690,2.2422,1612.1,1611.6,26.69292783]
[1693884168912,2.2422,1612.1,1611.8,6.20416]
[1693884169109,2.2422,1612.1,1611.8,7.557302]
[1693884169628,14.6485,1612.1,1611.6,9.44256375]
[1693884171686,23.91866426,1612.1,1611.6,6.70206375]
[1693884172332,0.36890871,1612.0,1611.6,6.70206375]
[1693884172510,12.77629871,1612.0,1611.6,6.70206375]
[1693884175028,1.123,1611.9,1611.4,10.42020955]
[1693884175233,1.123,1611.9,1611.4,2.5879]
[1693884175234,13.53171,1611.8,1611.4,2.5879]
[1693884175528,7.32816,1611.6,1611.2,0.65063982]
[1693884175753,12.41017,1611.6,1611.2,6.20653]
[1693884175890,12.41017,1611.6,1611.2,12.41308]
[1693884175891,6.20501,1611.6,1611.2,12.41308]
[1693884176099,0.29676194,1611.5,1611.2,12.41308]
[1693884176743,9.54331,1611.6,1611.2,12.41308]
[1693884177408,9.54331,1611.6,1611.2,6.20653]
[1693884177811,0.36929778,1611.5,1611.2,6.20653]
[1693884178250,3.43631204,1611.5,1611.1,4.15224801]
[1693884178414,23.17556204,1611.5,1611.0,8.72428]
[1693884178855,23.17556204,1611.5,1611.0,2.5171]
[1693884179069,2.3175562,1611.4,1611.0,2.5171]
[1693884179215,14.7295262,1611.4,1611.0,2.5171]
[1693884179765,16.9245262,1611.4,1611.0,2.5171]
[1693884180264,16.9245262,1611.4,1611.0,9.21722802]
[1693884181531,10.7183962,1611.4,1611.0,9.21722802]
[1693884181859,2.195,1611.4,1611.0,16.96701282]
[1693884182861,0.36929778,1611.5,1611.0,23.17433282]
[1693884183081,0.36929778,1611.5,1611.0,27.36434708]
[1693884183370,0.36929778,1611.5,1611.3,1.123]
[1693884183547,0.36929778,1611.5,1611.4,0.48]
[1693884183722,6.20349,1612.0,1611.4,20.10404143]
[1693884184034,2.88438415,1612.1,1611.4,20.10404143]
[1693884184229,2.88438415,1612.1,1611.6,12.40958]
[1693884184636,9.08746415,1612.1,1611.7,8.95015]
[1693884184962,9.08746415,1612.1,1611.7,11.086123]
[1693884188637,15.29054415,1612.1,1611.7,11.086123]
[1693884188837,15.29054415,1612.1,1611.7,4.881673]
[1693884192063,22.61662415,1612.1,1611.5,6.20529]
[1693884192236,0.64988415,1612.0,1611.5,8.80399]
[1693884192574,6.20395,1611.9,1611.5,8.80399]
[1693884196157,8.40255,1611.9,1611.5,8.80399]
[1693884196369,8.40255,1611.9,1611.5,2.5987]
[1693884196568,16.13210942,1611.9,1611.5,2.5987]
[1693884198952,17.25510942,1611.9,1611.5,2.5987]
[1693884199677,23.45895942,1611.9,1611.5,2.5987]
[1693884199908,1.123,1611.8,1611.3,6.20593]
[1693884200104,15.47645426,1611.7,1611.1,3.0]
[1693884200393,12.41105,1611.5,1611.1,8.7344]
[1693884200548,12.41105,1611.5,1611.1,2.5275]
[1693884200753,14.47525,1611.5,1611.1,2.5275]
[1693884201194,14.47525,1611.5,1611.1,8.73426]
[1693884202569,14.47525,1611.5,1611.1,2.5275]
[1693884202761,1.447525,1611.4,1611.1,2.5275]
[1693884202963,6.20579,1611.4,1611.1,2.5275]
[1693884204451,2.0642,1611.5,1611.1,14.94136]
[1693884204697,2.0642,1611.5,1611.1,21.14829]
[1693884204994,14.46251882,1611.8,1611.1,22.27129]
[1693884205164,13.33946882,1611.8,1611.1,22.27129]
[1693884205356,7.13499882,1611.8,1611.3,12.41175]
[1693884205756,9.32759882,1611.8,1611.4,8.80667]
[1693884205992,9.32759882,1611.8,1611.4,15.01245]
[1693884205993,3.12317882,1611.8,1611.4,15.01245]
[1693884206183,2.1926,1611.8,1611.4,15.01245]
[1693884206383,8.39685,1611.8,1611.4,15.01245]
[1693884207685,10.90023947,1611.8,1611.4,2.6011]
[1693884207876,18.22748947,1611.8,1611.4,2.6011]
[1693884208078,24.43173947,1611.8,1611.4,2.6011]
[1693884208290,27.49875373,1611.8,1611.4,2.6011]
[1693884208496,1.123,1611.7,1611.4,2.6011]
[1693884208810,1.123,1611.7,1611.2,6.20629]
[1693884208811,12.41002,1611.6,1611.2,6.20629]
[1693884209019,12.41002,1611.6,1611.2,14.96661]
[1693884209502,6.20501,1611.6,1611.2,14.96661]
[1693884209692,6.20501,1611.6,1611.2,15.64626858]
[1693884210006,8.27941,1611.6,1611.2,15.64626858]
[1693884214076,8.27941,1611.6,1611.2,14.96661]